bitfinex/quotes_SOLUSD_20250201
["timestamp","ask_amount","ask_price","bid_price","bid_amount"]
[1738377711081,0.8605,232.41,232.33,20.56863414]
[1738377711287,0.8605,232.41,232.35,13.41184853]
[1738377711483,2.4653,232.43,232.36,13.41184853]
[1738377711786,2.4653,232.43,232.36,230.41184853]
[1738377712286,2.4653,232.43,232.36,237.24371542]
[1738377712832,0.063,232.42,232.36,237.24371542]
[1738377714494,0.9235,232.42,232.36,237.24371542]
[1738377715020,0.9235,232.42,232.36,217.0]
[1738377715420,0.9235,232.42,232.36,223.83186689]
[1738377716118,0.063,232.42,232.36,223.83186689]
[1738377716989,0.063,232.42,232.38,6.83186689]
[1738377717189,0.063,232.42,232.39,0.3245483]
[1738377717417,0.063,232.42,232.39,217.0]
[1738377718592,0.9235,232.42,232.39,217.0]
[1738377724433,0.9235,232.42,232.39,82.3]
[1738377724803,6.4712,232.41,232.39,82.3]
[1738377726024,0.8605,232.4,232.39,82.3]
[1738377726698,0.98599,232.4,232.39,82.3]
[1738377727023,0.8605,232.4,232.37,0.03]
[1738377730030,20.0,232.38,232.37,0.03]
[1738377730803,20.25098,232.38,232.28,223.83186689]
[1738377731112,0.25098,232.37,232.28,217.0]
[1738377731828,20.25098,232.37,232.28,217.0]
[1738377732434,0.8607,232.36,232.28,217.0]
[1738377736445,0.8607,232.36,232.29,6.83186689]
[1738377737147,0.8607,232.36,232.29,223.83186689]
[1738377737646,2.1516,232.38,232.29,217.0]
[1738377737647,3.0122,232.38,232.29,217.0]
[1738377740144,20.12549,232.37,232.29,217.0]
[1738377741041,0.25098,232.37,232.29,217.0]
[1738377741247,0.8607,232.36,232.29,217.0]
[1738377742133,3.0125,232.36,232.29,217.0]
[1738377742635,3.0125,232.36,232.29,82.3]
[1738377742636,0.12549,232.35,232.29,82.3]
[1738377742845,20.12549,232.35,232.29,82.3]
[1738377743142,3.0128,232.34,232.29,82.3]
[1738377743340,0.12549,232.33,232.29,82.3]
[1738377743641,0.12549,232.33,232.28,0.03]
[1738377743843,0.25098,232.33,232.28,0.03]
[1738377744426,0.8609,232.3,232.28,0.03]
[1738377745644,0.12549,232.31,232.28,0.03]
[1738377745837,0.98639,232.31,232.28,0.03]
[1738377755359,1.79365986,232.31,232.28,0.03]
[1738377756258,2.89637736,232.31,232.28,0.03]
[1738377756456,1.79365986,232.31,232.28,0.03]
[1738377758365,20.8609,232.29,232.28,0.03]
[1738377759856,20.98639,232.29,232.28,0.03]
[1738377761066,20.98639,232.29,232.27,0.0001]
[1738377761067,20.12549,232.28,232.27,0.0001]
[1738377761269,0.12549,232.27,232.25,0.0101]
[1738377761561,0.25098,232.26,232.25,0.0101]
[1738377761949,1.11208,232.26,232.25,0.0101]
[1738377774475,0.8609,232.31,232.25,0.0101]
[1738377783064,0.80729472,232.3,232.25,0.0101]
[1738377784460,21.21972044,232.32,232.25,0.0101]
[1738377784461,3.82071988,232.29,232.25,0.0101]
[1738377786400,0.12549,232.28,232.25,0.0101]
[1738377786559,0.25098,232.26,232.25,0.0101]
[1738377787503,1.11208,232.26,232.25,0.0101]
[1738377787790,1.91958603,232.26,232.25,0.0101]
[1738377788593,21.91958603,232.26,232.25,0.0101]
[1738377789091,1.91958603,232.26,232.25,0.0101]
[1738377789397,1.11208,232.26,232.25,0.0101]
[1738377789595,1.91957099,232.26,232.25,0.0101]
[1738377790490,1.11208,232.26,232.25,0.0101]
[1738377790674,1.91957088,232.26,232.25,0.0101]
[1738377791105,1.79408088,232.26,232.25,0.0101]
[1738377791424,0.98659,232.26,232.25,0.0101]
[1738377815225,0.8611,232.26,232.25,0.0101]
[1738377815718,0.063,232.27,232.25,0.0101]
[1738377817421,0.063,232.27,232.25,6.84196689]
[1738377825126,0.063,232.27,232.25,0.0101]
[1738377827109,0.063,232.31,232.29,13.41184853]
[1738377827425,0.063,232.31,232.3,20.56879905]
[1738377827602,0.063,232.31,232.3,20.24371542]
[1738377828824,0.063,232.31,232.3,24.54841542]
[1738377829826,0.063,232.31,232.3,247.75981542]
[1738377836930,0.063,232.31,232.3,249.01079542]
[1738377837516,0.063,232.31,232.3,276.46375298]
[1738377838212,0.063,232.31,232.3,280.77375298]
[1738377840234,0.063,232.37,232.34,20.0]
[1738377840439,0.063,232.37,232.36,20.24371542]
[1738377840729,0.063,232.37,232.36,237.24371542]
[1738377841533,0.063,232.37,232.36,237.62018542]
[1738377842847,0.063,232.37,232.36,241.92378542]
[1738377843213,0.063,232.37,232.36,223.83186689]
[1738377843413,0.063,232.37,232.36,217.0]
[1738377845114,0.063,232.37,232.36,82.3]
[1738377846644,0.9236,232.37,232.36,82.3]
[1738377848129,0.9236,232.37,232.33,134.7]
[1738377852342,0.063,232.37,232.34,6.83186689]
[1738377852849,0.063,232.37,232.33,141.53186689]
[1738377853046,0.063,232.37,232.34,82.3]
[1738377853341,0.063,232.37,232.35,6.83186689]
[1738377854449,0.063,232.42,232.38,13.41184853]
[1738377854755,0.063,232.42,232.41,20.24371542]
[1738377854930,0.063,232.42,232.41,238.77451542]
[1738377861753,0.063,232.42,232.41,243.07721542]
[1738377862749,0.063,232.42,232.41,238.77451542]
[1738377862945,0.063,232.42,232.41,217.0]
[1738377864154,0.063,232.42,232.41,82.3]
[1738377864456,0.9235,232.42,232.37,134.7]
[1738377865750,0.12549,232.45,232.37,134.7]
[1738377865751,0.25098,232.45,232.37,134.7]
[1738377866258,0.12549,232.41,232.32,82.3]
[1738377866493,0.25098,232.41,232.32,82.3]
[1738377867326,20.8605,232.4,232.32,82.3]
[1738377868642,20.8605,232.4,232.32,82.33]
[1738377869954,20.8605,232.4,232.32,89.16186689]
[1738377871965,0.8605,232.4,232.32,89.16186689]
[1738377872164,0.8605,232.4,232.34,6.83186689]
[1738377872470,0.9235,232.42,232.38,6.83186689]
[1738377876163,0.063,232.42,232.38,6.83186689]
[1738377876365,0.063,232.42,232.39,6.83186689]
[1738377880170,0.063,232.42,232.41,6.83186689]
[1738377882675,0.063,232.42,232.41,89.13186689]
[1738377885174,0.063,232.42,232.41,102.54371542]
[1738377885374,0.063,232.42,232.41,106.84641542]
[1738377891582,0.063,232.42,232.41,241.54641542]
[1738377892183,0.063,232.42,232.41,237.24371542]
[1738377893684,0.063,232.42,232.41,217.0]
[1738377894779,0.063,232.42,232.41,217.03]
[1738377896075,0.063,232.42,232.41,223.86186689]
[1738377897586,0.063,232.42,232.41,89.16186689]
[1738377898784,0.063,232.42,232.41,102.57371542]
[1738377899088,0.063,232.42,232.41,106.87641542]
[1738377900985,0.063,232.42,232.41,241.57641542]
[1738377904585,0.063,232.42,232.41,223.86186689]
[1738377904789,0.063,232.42,232.41,217.03]
[1738377906390,0.063,232.42,232.41,82.33]
[1738377909584,0.063,232.42,232.41,89.16186689]
[1738377911502,0.063,232.42,232.41,82.33]
[1738377912708,0.9235,232.42,232.41,82.33]
[1738377914871,0.9235,232.42,232.41,0.03]
[1738377916778,1.17448,232.42,232.41,0.03]
[1738377916983,1.98140012,232.42,232.41,0.03]
[1738377917789,0.12549,232.41,232.33,82.3]
[1738377917997,0.25098,232.39,232.32,0.03]
[1738377918472,0.8606,232.38,232.32,0.03]
[1738377918667,0.12549,232.37,232.32,0.03]
[1738377919993,0.25098,232.37,232.32,0.03]
[1738377921300,0.8607,232.36,232.32,0.03]
[1738377924808,0.8606,232.39,232.33,6.83186689]
[1738377925006,0.8606,232.39,232.35,6.83186689]
[1738377926403,0.12549,232.4,232.35,6.83186689]
[1738377926609,0.98599,232.4,232.35,6.83186689]
[1738377928708,0.98599,232.4,232.33,6.83186689]
[1738377930217,0.98599,232.4,232.35,0.03]
[1738377932406,20.0,232.41,232.35,82.33]
[1738377932611,0.8605,232.41,232.35,89.16186689]
[1738377933397,0.063,232.42,232.4,6.83186689]
[1738377935192,0.063,232.42,232.4,89.13186689]
[1738377937426,0.063,232.42,232.4,82.3]
[1738377938231,0.9235,232.42,232.4,82.3]
[1738377939319,0.9235,232.42,232.38,6.83186689]
[1738377939491,0.9235,232.42,232.35,217.03]
[1738377939697,0.9235,232.42,232.35,0.03]
[1738377940917,0.12549,232.41,232.35,0.03]
[1738377941121,0.8605,232.4,232.35,0.03]
[1738377942638,0.8605,232.4,232.35,6.86186689]
[1738377944620,0.063,232.41,232.37,6.83186689]
[1738377946420,0.9235,232.41,232.37,6.83186689]
[1738377952928,0.9235,232.41,232.35,89.16186689]
[1738377953100,0.9235,232.41,232.35,82.33]
[1738377953303,0.9235,232.41,232.35,89.16186689]
[1738377953504,0.9235,232.41,232.37,6.83186689]
[1738377954831,0.9235,232.41,232.37,6.86186689]
[1738377956229,0.063,232.41,232.37,6.86186689]
[1738377956431,0.063,232.41,232.39,6.83186689]
[1738377956734,0.063,232.41,232.4,0.32446594]
[1738377956929,0.063,232.41,232.4,82.62446594]
[1738377959129,0.063,232.41,232.4,235.03921447]
[1738377959336,0.063,232.41,232.4,234.71474853]
[1738377959519,0.063,232.41,232.4,237.61474853]
[1738377961131,0.063,232.41,232.4,240.74610853]
[1738377961334,0.063,232.46,232.44,13.66282853]
[1738377961515,0.063,232.46,232.45,20.81849874]
[1738377961834,0.063,232.51,232.48,20.0]
[1738377962013,0.063,232.51,232.5,20.24371542]
[1738377963520,0.063,232.51,232.5,24.79569542]
[1738377965642,0.063,232.52,232.51,14.78831853]
[1738377965832,0.063,232.52,232.51,21.94343428]
[1738377966213,0.063,232.6,232.53,1.0]
[1738377966433,0.063,232.6,232.53,159.16695391]
[1738377966735,0.063,232.6,232.53,157.84371542]
[1738377967108,0.063,232.6,232.53,158.84371542]
[1738377967735,0.063,232.6,232.53,163.14421542]
[1738377967945,0.063,232.6,232.53,245.82068542]
[1738377968251,0.063,232.6,232.57,33.41184853]
[1738377968450,0.063,232.6,232.59,21.24371542]
[1738377968620,0.063,232.6,232.59,21.36920542]
[1738377968826,0.063,232.6,232.59,22.62018542]
[1738377969514,0.063,232.6,232.59,23.40636342]
[1738377970145,0.063,232.6,232.59,244.83125342]
[1738377970350,0.063,232.65,232.64,20.12549]
[1738377970560,0.063,232.75,232.72,0.12549]
[1738377970852,0.063,232.75,232.74,20.24371542]
[1738377971569,0.063,232.75,232.74,154.94371542]
[1738377971841,7.45249839,232.88,232.76,1.5245]
[1738377972143,6.59369839,232.88,232.86,10.63189303]
[1738377972318,6.59369839,232.88,232.84,10.63189303]
[1738377976048,6.59369839,232.88,232.79,152.40734853]
[1738377976049,3.0051,232.93,232.82,10.63189303]
[1738377976234,20.0,232.91,232.81,10.63189303]
[1738377977050,0.80523326,232.9,232.79,10.63189303]
[1738377977235,20.80529413,232.91,232.79,10.63189303]
[1738377977424,20.0,232.91,232.8,10.63189303]
[1738377978251,0.8587,232.9,232.84,10.63189303]
[1738377979053,0.8587,232.9,232.82,10.63189303]
[1738377979236,0.063,232.88,232.8,10.63189303]
[1738377979949,0.063,232.88,232.82,10.63189303]
[1738377980162,0.8588,232.87,232.82,10.63189303]
[1738377981368,0.8588,232.87,232.8,10.63189303]
[1738377981521,0.8588,232.87,232.77,13.41184853]
[1738377981725,0.8588,232.87,232.78,10.63189303]
[1738377981959,0.8588,232.87,232.79,10.63189303]
[1738377983137,0.8589,232.85,232.77,10.63189303]
[1738377983439,1.77018,232.84,232.76,10.63189303]
[1738377983837,21.77018,232.84,232.76,10.63189303]
[1738377985252,0.8589,232.83,232.78,10.63189303]
[1738377989244,0.8589,232.83,232.81,10.63189303]
[1738377991073,0.18849,232.88,232.81,10.63189303]
[1738377991285,0.12549,232.86,232.81,10.63189303]
[1738377991649,0.8588,232.87,232.83,10.63189303]
[1738377994049,0.063,232.88,232.85,10.63189303]
[1738377994249,0.063,232.88,232.86,10.63189303]
[1738377996654,0.9218,232.88,232.84,10.63189303]
[1738377996863,0.9218,232.88,232.8,92.93189303]
[1738377997160,0.9218,232.88,232.8,10.63189303]
[1738377997675,3.0688,232.88,232.78,10.63189303]
[1738377997908,3.0688,232.88,232.75,134.73]
[1738377997909,0.80536072,232.87,232.76,10.63189303]
[1738377998593,0.98429,232.86,232.76,10.63189303]
[1738377998761,0.98429,232.86,232.8,10.63189303]
[1738377998762,0.8588,232.86,232.8,10.63189303]
[1738378000102,0.12549,232.87,232.8,10.63189303]
[1738378000277,0.98429,232.87,232.8,10.63189303]
[1738378000484,1.78959315,232.87,232.78,10.63189303]
[1738378000681,3.93669315,232.87,232.78,10.63189303]
[1738378001292,0.12549,232.86,232.78,10.63189303]
[1738378001626,3.13139,232.87,232.8,10.63189303]
[1738378002503,0.12549,232.86,232.78,10.63189303]
[1738378005001,3.19439,232.87,232.8,10.63189303]
[1738378005510,0.9218,232.87,232.82,10.63189303]
[1738378005811,0.9218,232.87,232.85,10.63189303]
[1738378006115,0.063,232.87,232.85,10.63189303]
[1738378006580,0.8588,232.86,232.83,10.63189303]
[1738378008012,0.12549,232.85,232.77,10.63189303]
[1738378008193,0.12549,232.85,232.75,10.66189303]
[1738378008831,0.25098,232.85,232.75,10.66189303]
[1738378009279,20.0,232.83,232.75,10.66189303]
[1738378009484,0.859,232.82,232.75,10.66189303]
[1738378012713,0.859,232.82,232.77,10.63189303]
[1738378012930,0.859,232.82,232.79,10.63189303]
[1738378015023,6.77359,232.85,232.79,10.63189303]
[1738378015223,0.8589,232.84,232.79,10.63189303]
[1738378015905,0.8589,232.84,232.77,10.63189303]
[1738378018407,0.8589,232.84,232.79,10.63189303]
[1738378018803,0.8589,232.84,232.81,10.63189303]
[1738378019027,2.5161,232.86,232.81,10.63189303]
[1738378019511,0.8589,232.86,232.81,10.63189303]
[1738378020119,0.8589,232.86,232.83,10.63189303]
[1738378020530,0.8589,232.86,232.79,10.63189303]
[1738378021198,0.8589,232.86,232.81,10.63189303]
[1738378022026,0.80530631,232.85,232.75,10.66189303]
[1738378022213,0.12549,232.84,232.75,10.66189303]
[1738378024702,0.8589,232.83,232.75,10.66189303]
[1738378024902,1.5262,232.82,232.75,10.66189303]
[1738378025102,8.1743,232.82,232.75,0.03]
[1738378025402,8.9798603,232.82,232.75,0.03]
[1738378025611,0.12549,232.81,232.75,0.03]
[1738378025922,8.1743,232.82,232.77,10.63189303]
[1738378026098,8.1743,232.82,232.75,10.66189303]
[1738378026506,0.859,232.81,232.75,10.66189303]
[1738378027733,0.859,232.81,232.77,10.63189303]
[1738378028628,0.859,232.81,232.75,10.66189303]
[1738378029440,0.12549,232.8,232.75,0.03]
[1738378030010,0.12549,232.78,232.75,0.03]
[1738378031235,0.8589,232.84,232.76,10.63189303]
[1738378031535,0.8589,232.84,232.8,10.63189303]
[1738378032099,0.8589,232.84,232.82,10.63189303]
[1738378033235,0.063,232.87,232.82,10.63189303]
[1738378033435,0.9218,232.86,232.82,10.63189303]
[1738378035331,0.063,232.86,232.85,10.63189303]
[1738378036422,0.063,232.86,232.83,10.63189303]
[1738378037848,0.9219,232.86,232.83,10.63189303]
[1738378038534,0.063,232.86,232.85,10.63189303]
[1738378043842,0.063,232.86,232.85,28.71481156]
[1738378044032,0.063,232.87,232.86,13.53733853]
[1738378044337,0.063,232.87,232.86,14.57358496]
[1738378044626,0.063,232.88,232.87,14.53733853]
[1738378044805,0.063,232.88,232.87,26.27533073]
[1738378045724,0.063,232.88,232.87,30.56953073]
[1738378048419,0.063,232.88,232.87,25.14984073]
[1738378048620,0.063,232.88,232.87,24.82897427]
[1738378048831,0.063,232.88,232.87,0.78523271]
[1738378051040,0.063,232.88,232.84,10.63189303]
[1738378051244,0.063,232.88,232.86,10.63189303]
[1738378056247,0.9218,232.88,232.86,10.63189303]
[1738378056419,0.9218,232.88,232.84,10.63189303]
[1738378056840,0.9218,232.88,232.83,10.63189303]
[1738378057042,0.9218,232.88,232.84,10.63189303]
[1738378057245,0.9218,232.88,232.85,10.63189303]
[1738378059740,0.9218,232.88,232.83,10.63189303]
[1738378061954,0.9218,232.88,232.85,0.03]
[1738378062958,0.9218,232.88,232.85,10.66189303]
[1738378069763,0.9218,232.88,232.85,6.83239292]
[1738378075147,0.063,232.88,232.87,6.80239292]
[1738378089363,0.063,232.88,232.87,24.50844145]
[1738378089556,0.063,232.88,232.87,26.04664145]
[1738378092357,0.063,232.88,232.87,20.21424145]
[1738378092687,0.063,232.88,232.87,6.80239292]
[1738378095588,0.063,232.88,232.87,20.21424145]
[1738378095769,0.063,232.88,232.87,20.24424145]
[1738378095973,0.063,232.88,232.87,6.83239292]
[1738378112613,0.063,232.88,232.87,0.03]
[1738378113292,0.9218,232.88,232.87,0.03]
[1738378126105,3.0688,232.88,232.78,6.80239292]
[1738378126305,82.6,232.87,232.78,6.80239292]
[1738378126523,0.8588,232.86,232.78,6.80239292]
[1738378126901,0.8588,232.86,232.77,6.80239292]
[1738378127222,0.8588,232.86,232.78,6.80239292]
[1738378128431,1.95562926,232.86,232.78,6.80239292]
[1738378128926,1.95562926,232.86,232.8,6.80239292]
[1738378129108,0.8588,232.86,232.81,6.80239292]
[1738378129314,0.8588,232.86,232.83,6.80239292]
[1738378129536,0.8588,232.86,232.8,6.80239292]
[1738378130938,0.8588,232.86,232.83,0.03]
[1738378133737,0.8589,232.84,232.83,0.03]
[1738378134235,0.98439,232.84,232.83,0.03]
[1738378136447,82.72549,232.83,232.75,0.03]
[1738378136650,0.12549,232.81,232.75,0.03]
[1738378136937,0.12549,232.79,232.75,0.03]
[1738378137807,0.8591,232.78,232.75,0.03]
[1738378138123,83.4591,232.78,232.75,0.03]
[1738378138522,84.26477243,232.78,232.75,0.03]
[1738378139546,0.98469,232.76,232.75,0.03]
[1738378139737,1.79046592,232.76,232.75,0.03]
[1738378141709,1.91595592,232.76,232.75,0.03]
[1738378141910,21.11018,232.76,232.75,0.03]
[1738378147856,1.09520522,232.86,232.75,6.83239292]
[1738378148056,0.80541526,232.85,232.78,6.80239292]
[1738378148269,0.80541526,232.85,232.76,6.80239292]
[1738378148569,0.80541526,232.85,232.75,0.03]
[1738378148863,0.80541526,232.85,232.68,6.80239292]
[1738378148864,1.0,232.81,232.68,6.80239292]
[1738378149059,0.80570387,232.8,232.68,6.80239292]
[1738378149639,1.80570387,232.8,232.68,6.80239292]
[1738378149958,0.8591,232.79,232.68,6.80239292]
[1738378150128,0.80568015,232.78,232.68,6.80239292]
[1738378150551,0.12549,232.77,232.68,6.80239292]
[1738378151157,0.25098,232.78,232.7,6.80239292]
[1738378152046,82.6,232.84,232.7,6.80239292]
[1738378152047,0.063,232.88,232.77,6.80239292]
[1738378152360,0.063,232.88,232.84,6.80239292]
[1738378154968,0.063,232.88,232.86,6.80239292]
[1738378161273,0.9218,232.88,232.84,6.80239292]
[1738378161973,82.6,232.87,232.84,6.80239292]
[1738378162643,83.4588,232.87,232.8,6.80239292]
[1738378163044,82.72549,232.86,232.8,6.80239292]
[1738378163243,82.72549,232.86,232.78,6.80239292]
[1738378163475,82.6,232.85,232.78,6.80239292]
[1738378163775,82.6,232.85,232.79,6.80239292]
[1738378165568,0.8589,232.84,232.8,6.80239292]
[1738378167876,0.8589,232.84,232.79,6.80239292]
[1738378168047,0.8589,232.84,232.77,6.80239292]
[1738378168374,82.6,232.83,232.77,6.80239292]
[1738378169747,0.859,232.82,232.77,6.80239292]
[1738378170646,0.859,232.82,232.78,6.80239292]
[1738378171575,82.6,232.83,232.8,6.80239292]
[1738378171781,82.6,232.83,232.81,6.80239292]
[1738378171955,82.6,232.83,232.75,0.03]
[1738378171956,82.6,232.83,232.79,6.80239292]
[1738378172163,83.459,232.83,232.77,6.80239292]
[1738378173880,82.6,232.82,232.78,6.80239292]
[1738378174457,82.6,232.81,232.76,6.80239292]
[1738378174659,0.859,232.83,232.75,6.83239292]
[1738378174660,82.6,232.8,232.75,6.83239292]
[1738378174848,82.6,232.8,232.76,6.80239292]
[1738378175585,0.8591,232.79,232.76,6.80239292]
[1738378176174,0.8591,232.79,232.77,6.80239292]
[1738378179801,82.6,232.78,232.77,6.80239292]
[1738378179962,0.8591,232.78,232.75,6.83239292]
[1738378180302,0.8591,232.78,232.75,0.03]
[1738378181370,2.1478,232.79,232.75,0.03]
[1738378185661,82.6,232.77,232.75,0.03]
[1738378186157,82.6,232.76,232.75,0.03]
[1738378186383,83.4592,232.76,232.75,0.03]
[1738378191690,2.1478,232.79,232.75,0.03]
[1738378191872,3.0069,232.79,232.75,0.03]
[1738378197291,83.4591,232.79,232.75,0.03]
[1738378200797,82.6,232.78,232.75,0.03]
[1738378201788,83.4592,232.77,232.75,0.03]
[1738378202403,82.6,232.77,232.75,0.03]
[1738378202575,82.6,232.77,232.76,6.80239292]
[1738378202992,83.4592,232.77,232.75,0.03]
[1738378208806,82.72549,232.76,232.75,0.03]
[1738378209303,0.12549,232.76,232.75,0.03]
[1738378210306,0.98469,232.76,232.75,0.03]
[1738378210799,0.8592,232.76,232.75,0.03]
[1738378211700,0.8591,232.78,232.75,0.03]
[1738378213300,0.9221,232.78,232.75,0.03]
[1738378221830,0.063,232.82,232.75,0.03]
[1738378222504,82.6,232.81,232.75,0.03]
[1738378223623,83.459,232.81,232.75,0.03]
[1738378224716,20.0,232.78,232.75,0.03]
[1738378224915,0.8592,232.77,232.75,0.03]
[1738378225126,82.6,232.76,232.75,0.03]
[1738378227424,82.6,232.76,232.75,1.6057]
[1738378228217,82.6,232.76,232.75,0.03]
[1738378231728,0.8592,232.76,232.75,0.03]
[1738378233317,0.80567309,232.76,232.75,0.03]
[1738378235521,0.8592,232.77,232.75,0.03]
[1738378235713,0.80576351,232.76,232.75,0.03]
[1738378236110,0.80576351,232.76,232.7,0.03]
[1738378236111,20.0,232.74,232.7,0.03]
[1738378236335,0.80589824,232.73,232.7,0.03]
[1738378237044,0.25098,232.72,232.7,0.03]
[1738378237203,0.25098,232.71,232.7,0.03]
[1738378237540,1.11038,232.71,232.7,0.03]
[1738378238318,1.11038,232.71,232.63,5.36239292]
[1738378238542,82.6,232.7,232.63,5.36239292]
[1738378240145,0.8595,232.69,232.63,5.36239292]
[1738378240345,0.8595,232.69,232.64,6.80239292]
[1738378241249,0.8595,232.69,232.61,6.83239292]
[1738378241625,0.8595,232.69,232.63,6.80239292]
[1738378242150,82.6,232.68,232.63,6.80239292]
[1738378243822,82.6,232.67,232.63,6.80239292]
[1738378248042,82.6,232.67,232.63,6.83239292]
[1738378249436,82.6,232.67,232.65,6.80239292]
[1738378251257,82.6,232.67,232.63,0.03]
[1738378251439,83.4596,232.67,232.63,0.03]
[1738378254072,82.6,232.66,232.63,0.03]
[1738378254246,82.6,232.65,232.63,0.03]
[1738378254838,82.6,232.65,232.64,6.80239292]
[1738378258659,82.6,232.65,232.63,0.03]
[1738378260163,0.8594,232.72,232.64,6.80239292]
[1738378260369,82.6,232.71,232.67,6.80239292]
[1738378261257,82.6,232.7,232.69,6.80239292]
[1738378262288,82.6,232.7,232.69,20.21424145]
[1738378264983,82.6,232.7,232.67,6.80239292]
[1738378265287,83.4594,232.7,232.65,6.80239292]
[1738378266084,82.6,232.69,232.67,6.80239292]
[1738378272199,82.6,232.69,232.63,6.83239292]
[1738378272492,82.6,232.68,232.63,0.03]
[1738378273269,82.6,232.67,232.63,0.03]
[1738378273488,0.93158463,232.66,232.63,0.03]
[1738378273860,0.93158463,232.66,232.61,0.03]
[1738378274281,0.12549,232.64,232.61,0.03]
[1738378274479,82.6,232.63,232.61,0.03]
[1738378275586,0.8597,232.62,232.61,0.03]
[1738378278003,0.12549,232.62,232.61,0.03]
[1738378278298,0.93176792,232.62,232.61,0.03]
[1738378278592,0.12549,232.6,232.59,0.03]
[1738378278793,0.93185475,232.6,232.59,0.03]
[1738378278990,1.5217,232.62,232.59,0.03]
[1738378279187,2.57671608,232.62,232.59,0.03]
[1738378279592,1.5217,232.62,232.59,0.03]
[1738378279891,0.12549,232.61,232.59,0.03]
[1738378280390,0.8598,232.61,232.59,0.03]
[1738378282596,0.12549,232.63,232.59,0.03]
[1738378283797,82.6,232.62,232.59,0.03]
[1738378285177,0.8598,232.61,232.59,0.03]
[1738378285665,82.6,232.62,232.59,6.83239292]
[1738378286294,82.6,232.61,232.59,6.83239292]
[1738378287687,82.6,232.61,232.59,11.13169292]
[1738378287884,82.6,232.61,232.6,13.41184853]
[1738378288083,0.063,232.63,232.6,13.53733853]
[1738378288281,0.063,232.63,232.62,20.21424145]
[1738378289479,0.063,232.63,232.62,24.51304145]
[1738378290389,0.063,232.63,232.62,26.26273145]
[1738378294006,0.063,232.63,232.62,21.83844145]
[1738378300114,0.063,232.63,232.62,20.21424145]
[1738378302418,0.063,232.63,232.62,6.80239292]
[1738378302816,0.063,232.63,232.61,0.03]
[1738378303415,82.6,232.62,232.61,0.03]
[1738378305019,0.12549,232.62,232.61,0.03]
[1738378305313,0.12549,232.62,232.59,0.03]
[1738378305314,0.12549,232.61,232.59,0.03]
[1738378305517,1.0573252,232.6,232.59,0.03]
[1738378305823,1.9171252,232.6,232.59,0.0001]
[1738378308420,2.97660817,232.6,232.59,0.0001]
[1738378308799,22.97660817,232.6,232.59,0.0001]
[1738378309289,36.3884567,232.6,232.59,0.0001]
[1738378310820,22.0,232.56,232.51,0.03]
[1738378311027,22.0,232.56,232.43,6.80239292]
[1738378311028,20.0,232.52,232.43,6.80239292]
[1738378311224,13.41184853,232.54,232.41,6.80239292]
[1738378311225,20.8067007,232.51,232.41,6.80239292]
[1738378311911,0.8602,232.5,232.41,6.80239292]
[1738378312113,0.80672164,232.49,232.41,6.80239292]
[1738378312516,1.89904406,232.49,232.41,6.80239292]
[1738378312828,1.66692164,232.5,232.41,6.80239292]
[1738378314616,0.25098,232.49,232.41,6.80239292]
[1738378314807,0.8602,232.48,232.41,6.80239292]
[1738378315822,0.8602,232.48,232.4,0.03]
[1738378315823,0.25098,232.47,232.4,0.03]
[1738378316002,0.12549,232.45,232.4,0.03]
[1738378317226,0.8604,232.44,232.4,0.03]
[1738378319433,82.6,232.43,232.4,0.03]